bitfinex/quotes_SOLUSD_20241107
["timestamp","ask_amount","ask_price","bid_price","bid_amount"]
[1731006615755,24.91474569,196.18,196.13,20.0]
[1731006616254,24.91474569,196.17,196.11,24.91474569]
[1731006616449,24.91474569,196.15,196.09,24.91474569]
[1731006616950,24.91474569,196.21,196.14,24.91474569]
[1731006617168,3.78279337,196.2,196.17,24.91474569]
[1731006617647,24.91474569,196.21,196.15,24.91474569]
[1731006617823,24.91474569,196.22,196.16,24.91474569]
[1731006618835,24.91474569,196.23,196.17,24.91474569]
[1731006619026,24.91474569,196.25,196.19,24.91474569]
[1731006619227,30.18784533,196.28,196.22,24.91474569]
[1731006619427,24.91474569,196.25,196.19,24.91474569]
[1731006619655,24.91474569,196.26,196.19,24.91474569]
[1731006619961,24.91474569,196.24,196.14,20.0]
[1731006620126,24.91474569,196.23,196.17,24.91474569]
[1731006620330,24.91474569,196.24,196.18,24.91474569]
[1731006620541,5.27598169,196.28,196.14,20.0]
[1731006620739,28.69365388,196.27,196.21,24.91474569]
[1731006620944,24.91474569,196.25,196.19,24.91474569]
[1731006621133,24.91474569,196.24,196.18,24.91474569]
[1731006621333,20.37602,196.3,196.12,23.776884]
[1731006621555,0.1,196.28,196.16,24.91474569]
[1731006621857,24.91474569,196.22,196.16,24.91474569]
[1731006623935,24.91474569,196.22,196.15,24.91474569]
[1731006624141,24.91474569,196.23,196.17,24.91474569]
[1731006624451,24.91474569,196.27,196.21,24.91474569]
[1731006625262,24.91474569,196.27,196.2,24.91474569]
[1731006625466,24.91474569,196.26,196.19,24.91474569]
[1731006625649,24.91474569,196.24,196.17,24.91474569]
[1731006625839,24.91474569,196.24,196.18,24.91474569]
[1731006626158,24.91474569,196.25,196.18,24.91474569]
[1731006626646,24.91474569,196.23,196.17,24.91474569]
[1731006627061,24.91474569,196.21,196.14,24.91474569]
[1731006627361,24.91474569,196.2,196.14,24.91474569]
[1731006627771,24.91474569,196.2,196.13,24.91474569]
[1731006628052,24.91474569,196.19,196.13,24.91474569]
[1731006629340,24.91474569,196.18,196.11,24.91474569]
[1731006629853,24.91474569,196.16,196.1,24.91474569]
[1731006630163,24.91474569,196.15,196.09,24.91474569]
[1731006630956,24.91474569,196.14,196.08,24.91474569]
[1731006631766,24.91474569,196.13,196.07,24.91474569]
[1731006631959,24.91474569,196.12,196.06,24.91474569]
[1731006632136,24.91474569,196.12,196.05,24.91474569]
[1731006632338,24.91474569,196.11,196.05,24.91474569]
[1731006632635,24.91474569,196.1,196.03,24.91474569]
[1731006632842,24.91474569,196.09,196.02,24.91474569]
[1731006633037,24.91474569,196.08,196.02,24.91474569]
[1731006633863,24.91474569,196.07,196.0,24.91474569]
[1731006634066,24.91474569,196.07,196.01,24.91474569]
[1731006634368,24.91474569,196.09,196.03,24.91474569]
[1731006634744,24.91474569,196.09,196.02,24.91474569]
[1731006635268,24.91474569,196.09,196.03,24.91474569]
[1731006635938,24.91474569,196.09,196.02,24.91474569]
[1731006636164,24.91474569,196.09,196.03,24.91474569]
[1731006636638,24.91474569,196.08,196.01,24.91474569]
[1731006636839,24.91474569,196.05,195.93,5.31566839]
[1731006637051,24.91474569,196.03,195.97,24.91474569]
[1731006638240,24.91474569,196.03,195.96,24.91474569]
[1731006639447,24.91474569,196.02,195.96,24.91474569]
[1731006639751,24.91474569,196.0,195.93,24.91474569]
[1731006640145,24.91474569,195.99,195.93,24.91474569]
[1731006640371,24.91474569,195.98,195.92,24.91474569]
[1731006640574,24.91474569,195.99,195.93,24.91474569]
[1731006641242,24.91474569,196.01,195.95,24.91474569]
[1731006641565,24.91474569,196.02,195.96,24.91474569]
[1731006642267,24.91474569,196.01,195.95,24.91474569]
[1731006642771,24.91474569,196.0,195.94,24.91474569]
[1731006642951,24.91474569,195.96,195.9,24.91474569]
[1731006643142,24.91474569,195.99,195.94,24.91474569]
[1731006643470,24.91474569,196.01,195.95,24.91474569]
[1731006643644,24.91474569,196.1,195.91,20.0]
[1731006643846,9.8276658,196.09,195.99,24.91474569]
[1731006644045,3.77987146,196.08,195.92,0.1]
[1731006644370,1.33814528,196.13,195.95,20.0]
[1731006644546,9.82408295,196.12,195.95,20.0]
[1731006644850,24.91474569,196.03,195.97,24.91474569]
[1731006645053,24.91474569,196.1,195.95,24.91474569]
[1731006645054,24.91474569,196.01,195.95,24.91474569]
[1731006645258,24.91474569,196.02,195.96,24.91474569]
[1731006645463,24.91474569,196.0,195.94,24.91474569]
[1731006646078,24.91474569,196.02,195.96,24.91474569]
[1731006646361,24.91474569,196.01,195.95,24.91474569]
[1731006646775,24.91474569,196.02,195.96,24.91474569]
[1731006646943,24.91474569,196.01,195.95,24.91474569]
[1731006647555,24.91474569,195.99,195.93,24.91474569]
[1731006647764,0.2,196.07,195.93,24.91474569]
[1731006647765,24.91474569,196.0,195.93,24.91474569]
[1731006647946,24.91474569,195.99,195.93,24.91474569]
[1731006648364,24.91474569,196.0,195.94,24.91474569]
[1731006648840,24.91474569,196.01,195.95,24.91474569]
[1731006649245,24.91474569,196.01,195.94,24.91474569]
[1731006649440,24.91474569,196.01,195.95,24.91474569]
[1731006649661,24.91474569,196.02,195.96,24.91474569]
[1731006649862,24.91474569,196.02,195.84,5.31624482]
[1731006649863,24.91474569,196.01,195.94,24.91474569]
[1731006650550,24.91474569,195.95,195.84,5.31624482]
[1731006650746,24.91474569,196.0,195.84,5.31624482]
[1731006650747,24.91474569,195.93,195.87,24.91474569]
[1731006650945,24.91474569,195.94,195.87,24.91474569]
[1731006651151,24.91474569,195.94,195.88,24.91474569]
[1731006651345,24.91474569,195.95,195.89,24.91474569]
[1731006651563,24.91474569,195.99,195.93,24.91474569]
[1731006651768,24.91474569,195.98,195.92,24.91474569]
[1731006652272,24.91474569,195.97,195.91,24.91474569]
[1731006652657,24.91474569,195.94,195.88,24.91474569]
[1731006652859,24.91474569,195.93,195.87,24.91474569]
[1731006653160,24.91474569,195.94,195.88,24.91474569]
[1731006653556,24.91474569,195.95,195.89,24.91474569]
[1731006653750,24.91474569,195.97,195.91,24.91474569]
[1731006654343,24.91474569,195.99,195.93,24.91474569]
[1731006654765,20.40876,196.0,195.97,24.91474569]
[1731006654968,20.40876,196.0,195.98,24.91474569]
[1731006655469,24.91474569,196.04,195.98,24.91474569]
[1731006655674,24.91474569,196.03,195.97,24.91474569]
[1731006655970,24.91474569,196.02,195.96,24.91474569]
[1731006656381,24.91474569,196.0,195.94,24.91474569]
[1731006656693,20.401208,196.04,195.9,24.91474569]
[1731006656694,24.91474569,195.96,195.9,24.91474569]
[1731006657048,24.91474569,195.97,195.91,24.91474569]
[1731006657247,24.91474569,195.96,195.9,24.91474569]
[1731006657473,24.91474569,195.94,195.88,24.91474569]
[1731006657644,24.91474569,195.93,195.87,24.91474569]
[1731006657849,24.91474569,195.92,195.86,24.91474569]
[1731006658167,24.91474569,195.91,195.85,24.91474569]
[1731006658972,24.91474569,195.93,195.87,24.91474569]
[1731006659148,48.69162969,195.91,195.82,0.5702591]
[1731006659475,24.91474569,195.9,195.84,24.91474569]
[1731006659775,25.09157204,195.99,195.82,0.5702591]
[1731006659776,24.91474569,195.92,195.85,24.91474569]
[1731006659956,24.91474569,195.93,195.87,24.91474569]
[1731006660267,24.91474569,195.94,195.88,24.91474569]
[1731006660488,24.91474569,195.95,195.89,24.91474569]
[1731006660770,24.91474569,195.95,195.88,24.91474569]
[1731006661071,25.09157204,195.99,195.82,0.5702591]
[1731006661072,24.91474569,195.96,195.89,24.91474569]
[1731006661265,24.91474569,195.96,195.9,24.91474569]
[1731006661581,24.91474569,195.99,195.93,24.91474569]
[1731006661872,20.501208,196.04,195.92,24.91474569]
[1731006661873,24.91474569,195.98,195.92,24.91474569]
[1731006662370,24.91474569,195.99,195.93,24.91474569]
[1731006662572,24.91474569,195.96,195.9,24.91474569]
[1731006662746,24.91474569,195.98,195.92,24.91474569]
[1731006662947,24.91474569,195.99,195.92,24.91474569]
[1731006663359,24.91474569,196.0,195.94,24.91474569]
[1731006663564,24.91474569,196.03,195.97,24.91474569]
[1731006663752,24.91474569,196.02,195.96,24.91474569]
[1731006664166,24.91474569,196.03,195.97,24.91474569]
[1731006664357,45.31595369,196.04,195.98,24.91474569]
[1731006664562,45.31595369,196.04,195.97,24.91474569]
[1731006664766,24.91474569,196.03,195.97,24.91474569]
[1731006665474,24.91474569,196.0,195.94,24.91474569]
[1731006665977,24.91474569,195.99,195.93,24.91474569]
[1731006666165,24.91474569,196.0,195.94,24.91474569]
[1731006666362,24.91474569,196.0,195.91,20.0]
[1731006666363,20.401208,196.04,195.99,24.91474569]
[1731006666553,24.91474569,196.03,195.97,24.91474569]
[1731006666753,24.91474569,196.01,195.95,24.91474569]
[1731006666984,24.91474569,196.02,195.95,24.91474569]
[1731006667693,24.91474569,196.02,195.91,20.0]
[1731006667694,24.91474569,196.02,195.96,24.91474569]
[1731006668470,24.91474569,196.01,195.95,24.91474569]
[1731006668679,20.401208,196.04,196.0,24.91474569]
[1731006668973,24.91474569,196.03,195.97,24.91474569]
[1731006669564,24.91474569,196.04,195.98,24.91474569]
[1731006669766,1.32977257,196.06,196.0,24.91474569]
[1731006669968,24.91474569,196.07,196.0,24.91474569]
[1731006670167,24.91474569,196.05,195.99,24.91474569]
[1731006670380,20.39851,196.06,195.92,23.776884]
[1731006670687,24.91474569,196.05,195.98,24.91474569]
[1731006670879,24.91474569,196.05,195.99,24.91474569]
[1731006671285,20.39851,196.06,196.0,24.91474569]
[1731006671474,24.91474569,196.05,195.99,24.91474569]
[1731006672178,24.91474569,196.06,196.0,24.91474569]
[1731006672982,20.397656,196.07,195.93,20.0]
[1731006672983,20.397656,196.07,196.03,24.91474569]
[1731006673194,45.31240169,196.07,196.01,24.91474569]
[1731006673584,24.91474569,196.02,195.93,20.0]
[1731006673768,24.91474569,196.02,195.88,0.1]
[1731006673969,24.91474569,196.05,195.99,24.91474569]
[1731006674185,1.36782994,196.12,196.02,24.91474569]
[1731006674386,24.91474569,196.08,196.02,24.91474569]
[1731006674595,3.78131264,196.07,196.03,24.91474569]
[1731006674896,24.91474569,196.08,196.02,24.91474569]
[1731006675075,3.78124082,196.07,196.03,24.91474569]
[1731006675385,24.91474569,196.08,196.02,24.91474569]
[1731006675689,24.91474569,196.06,196.0,24.91474569]
[1731006675891,24.91474569,196.03,195.97,24.91474569]
[1731006676098,24.91474569,196.01,195.94,24.91474569]
[1731006676293,24.91474569,196.0,195.93,24.91474569]
[1731006676590,24.91474569,195.98,195.91,24.91474569]
[1731006676787,24.91474569,195.97,195.91,24.91474569]
[1731006677184,24.91474569,195.98,195.91,24.91474569]
[1731006677789,24.91474569,195.99,195.93,24.91474569]
[1731006678299,6.06848218,195.98,195.93,24.91474569]
[1731006678598,24.91474569,196.01,195.95,24.91474569]
[1731006678786,24.91474569,196.02,195.96,24.91474569]
[1731006678968,23.776884,196.07,195.95,24.91474569]
[1731006679172,24.91474569,196.01,195.95,24.91474569]
[1731006679378,24.91474569,196.01,195.94,24.91474569]
[1731006679689,24.91474569,195.98,195.91,24.91474569]
[1731006679999,24.91474569,195.97,195.9,24.91474569]
[1731006680170,24.91474569,195.98,195.92,24.91474569]
[1731006680366,24.91474569,195.98,195.82,7.35887573]
[1731006680367,24.91474569,196.02,195.96,24.91474569]
[1731006680593,24.91474569,196.04,195.98,24.91474569]
[1731006680783,24.91474569,196.06,196.0,24.91474569]
[1731006681119,24.91474569,196.06,195.9,25.11474569]
[1731006681120,5.3157466,196.12,196.02,24.91474569]
[1731006681271,0.1,196.16,196.02,24.91474569]
[1731006681272,45.31067369,196.09,196.02,24.91474569]
[1731006682192,24.91474569,196.07,196.01,24.91474569]
[1731006682395,24.91474569,196.04,195.97,24.91474569]
[1731006682583,24.91474569,196.04,195.91,43.776884]
[1731006682785,24.91474569,196.05,195.99,24.91474569]
[1731006683100,23.776884,196.08,195.92,20.0]
[1731006683395,24.91474569,196.05,195.99,24.91474569]
[1731006683702,24.91474569,196.05,195.98,24.91474569]
[1731006683990,23.776884,196.08,195.95,24.91474569]
[1731006683991,24.91474569,196.02,195.95,24.91474569]
[1731006685087,24.91474569,196.02,195.96,24.91474569]
[1731006685397,24.91474569,196.04,195.97,24.91474569]
[1731006685596,24.91474569,196.03,195.97,24.91474569]
[1731006685772,24.91474569,196.02,195.96,24.91474569]
[1731006686194,24.91474569,196.03,195.97,24.91474569]
[1731006687175,20.595928,196.09,195.9,24.91474569]
[1731006687176,20.395928,196.09,196.0,24.91474569]
[1731006687394,24.91474569,196.08,196.02,24.91474569]
[1731006687775,24.91474569,196.07,196.01,24.91474569]
[1731006687978,24.91474569,196.06,196.0,24.91474569]
[1731006688189,24.91474569,196.06,195.99,24.91474569]
[1731006688776,24.91474569,196.06,196.0,24.91474569]
[1731006689178,24.91474569,196.07,196.01,24.91474569]
[1731006689485,24.91474569,196.06,196.0,24.91474569]
[1731006689691,24.91474569,196.07,196.01,24.91474569]
[1731006690205,26.28198072,196.12,196.06,24.91474569]
[1731006690390,20.39308,196.11,196.07,24.91474569]
[1731006690600,24.91474569,196.14,196.08,24.91474569]
[1731006691279,5.3147383,196.19,196.0,24.91474569]
[1731006691280,24.91474569,196.17,196.11,24.91474569]
[1731006691678,24.91474569,196.16,196.1,24.91474569]
[1731006692815,24.91474569,196.18,196.12,24.91474569]
[1731006693385,24.91474569,196.18,196.04,23.776884]
[1731006693605,24.91474569,196.18,196.12,24.91474569]
[1731006693801,24.91474569,196.19,196.13,24.91474569]
[1731006693983,24.91474569,196.19,196.14,24.91474569]
[1731006694707,5.31413555,196.22,196.03,21.32165321]
[1731006694708,1.32205497,196.22,196.03,21.32165321]
[1731006695008,24.91474569,196.14,196.08,24.91474569]
[1731006695314,24.91474569,196.17,196.11,24.91474569]
[1731006695493,24.91474569,196.18,196.12,24.91474569]
[1731006695804,24.91474569,196.17,196.11,24.91474569]
[1731006695997,24.91474569,196.18,196.12,24.91474569]
[1731006696190,24.91474569,196.16,196.11,24.91474569]
[1731006696592,24.91474569,196.16,196.04,23.776884]
[1731006696825,24.91474569,196.19,196.13,24.91474569]
[1731006697183,24.91474569,196.2,196.14,24.91474569]
[1731006697501,24.91474569,196.21,196.15,24.91474569]
[1731006698114,24.91474569,196.22,196.16,24.91474569]
[1731006698409,24.91474569,196.21,196.15,24.91474569]
[1731006698783,24.91474569,196.19,196.13,24.91474569]
[1731006699005,6.3060579,196.25,196.04,23.876884]
[1731006699006,24.91474569,196.17,196.11,24.91474569]
[1731006699788,24.91474569,196.16,196.1,24.91474569]
[1731006703715,24.91474569,196.15,196.09,24.91474569]
[1731006704096,24.91474569,196.14,196.07,24.91474569]
[1731006704495,24.91474569,196.12,196.05,24.91474569]
[1731006704694,24.91474569,196.12,196.06,24.91474569]
[1731006704903,24.91474569,196.12,196.05,24.91474569]
[1731006705101,24.91474569,196.13,196.07,24.91474569]
[1731006706018,24.91474569,196.18,196.12,24.91474569]
[1731006706406,24.91474569,196.17,196.11,24.91474569]
[1731006708112,24.91474569,196.14,196.08,24.91474569]
[1731006708421,24.91474569,196.13,196.07,24.91474569]
[1731006708618,24.91474569,196.14,196.08,24.91474569]
[1731006709025,24.91474569,196.12,196.06,24.91474569]
[1731006710204,24.91474569,196.13,196.07,24.91474569]
[1731006710405,24.91474569,196.14,196.08,24.91474569]
[1731006710917,24.91474569,196.13,196.07,24.91474569]
[1731006711119,24.91474569,196.13,196.0,26.27530973]
[1731006711120,24.91474569,196.11,196.01,20.0]
[1731006711428,24.91474569,196.12,196.05,24.91474569]
[1731006711726,24.91474569,196.12,196.01,20.0]
[1731006711727,24.91474569,196.12,196.06,24.91474569]
[1731006713121,24.91474569,196.11,196.04,24.91474569]
[1731006714025,23.976884,196.19,196.04,24.91474569]
[1731006714026,24.91474569,196.1,196.04,24.91474569]
[1731006714215,24.91474569,196.11,196.04,24.91474569]
[1731006715128,24.91474569,196.08,196.02,24.91474569]
[1731006716204,24.91474569,196.09,196.03,24.91474569]
[1731006716933,24.91474569,196.1,196.04,24.91474569]
[1731006717335,24.91474569,196.11,196.05,24.91474569]
[1731006717510,24.91474569,196.12,196.06,24.91474569]
[1731006719030,24.91474569,196.11,196.05,24.91474569]
[1731006719221,24.91474569,196.09,196.03,24.91474569]
[1731006719829,24.91474569,196.1,196.04,24.91474569]
[1731006720339,24.91474569,196.09,196.03,24.91474569]
[1731006720630,24.91474569,196.11,196.05,24.91474569]
[1731006721409,24.91474569,196.1,196.04,24.91474569]
[1731006721633,24.91474569,196.1,195.86,25.91295086]
[1731006721634,24.91474569,196.05,195.91,0.1]
[1731006721842,24.91474569,196.01,195.95,24.91474569]
[1731006722015,24.91474569,196.02,195.95,24.91474569]
[1731006722329,24.91474569,196.02,195.96,24.91474569]
[1731006722536,24.91474569,196.01,195.95,24.91474569]
[1731006722732,24.91474569,196.03,195.97,24.91474569]
[1731006722935,24.91474569,196.05,195.98,44.91474569]
[1731006723837,24.91474569,196.1,195.98,20.0]
[1731006723838,24.91474569,196.04,195.98,20.0]
[1731006724137,24.91474569,196.03,195.98,20.0]
[1731006724716,24.91474569,196.04,195.98,20.0]
[1731006725237,24.91474569,196.06,195.99,24.91474569]
[1731006725443,24.91474569,196.11,196.05,24.91474569]
[1731006725730,24.91474569,196.12,196.07,24.91474569]
[1731006726125,6.31572801,196.15,196.08,24.91474569]
[1731006726433,24.91474569,196.16,196.01,0.2]
[1731006726641,24.91474569,196.17,196.11,24.91474569]
[1731006726931,20.482332,196.27,196.14,24.91474569]
[1731006726932,24.91474569,196.2,196.14,24.91474569]
[1731006727133,24.91474569,196.2,196.15,24.91474569]
[1731006727438,24.91474569,196.2,196.14,24.91474569]
[1731006727633,24.91474569,196.2,196.15,24.91474569]
[1731006727830,24.91474569,196.18,196.12,24.91474569]
[1731006728133,24.91474569,196.22,196.16,24.91474569]
[1731006728323,7.62280536,196.26,196.11,43.776884]
[1731006728531,6.31668914,196.25,196.11,43.776884]
[1731006729237,24.91474569,196.22,196.16,24.91474569]
[1731006729538,24.91474569,196.21,196.15,24.91474569]
[1731006729723,11.62931933,196.26,196.17,24.91474569]
[1731006729724,24.91474569,196.23,196.17,24.91474569]
[1731006729923,24.91474569,196.22,196.16,24.91474569]
[1731006731336,24.91474569,196.23,196.17,24.91474569]
[1731006731514,5.31263019,196.26,196.11,43.776884]
[1731006731515,24.91474569,196.26,196.2,24.91474569]
[1731006731719,24.91474569,196.27,196.2,24.91474569]
[1731006732222,24.91474569,196.27,196.21,24.91474569]
[1731006732524,24.91474569,196.3,196.24,24.91474569]
[1731006732725,24.91474569,196.31,196.25,24.91474569]
[1731006733034,24.91474569,196.31,196.2,24.91474569]
[1731006733035,24.91474569,196.33,196.27,24.91474569]
[1731006733345,5.31080953,196.35,196.31,24.91474569]
[1731006733525,24.91474569,196.36,196.3,24.91474569]
[1731006734253,24.91474569,196.37,196.31,24.91474569]
[1731006734536,24.91474569,196.35,196.29,24.91474569]
[1731006734736,24.91474569,196.34,196.29,20.0]
[1731006734940,24.91474569,196.31,196.21,20.0]
[1731006735236,24.91474569,196.29,196.23,24.91474569]
[1731006735542,24.91474569,196.29,196.13,0.1]
[1731006735543,28.7001267,196.28,196.22,24.91474569]
[1731006735745,3.78538101,196.27,196.22,24.91474569]
[1731006736042,28.7001267,196.27,196.13,0.1]
[1731006736249,3.78538101,196.26,196.2,24.91474569]
[1731006736542,3.78538101,196.26,196.13,0.1]
[1731006736543,3.78538101,196.26,196.22,24.91474569]
[1731006736725,24.91474569,196.27,196.21,24.91474569]
[1731006736920,3.78487742,196.26,196.21,24.91474569]
[1731006737132,24.91474569,196.29,196.23,24.91474569]
[1731006737332,3.78340507,196.28,196.26,24.91474569]
[1731006737527,24.91474569,196.34,196.27,24.91474569]
[1731006737722,3.78312127,196.33,196.29,24.91474569]
[1731006737925,3.78312127,196.32,196.3,24.91474569]
[1731006738141,3.78312127,196.31,196.3,20.0]
[1731006738444,24.91474569,196.35,196.29,24.91474569]
[1731006738655,24.91474569,196.33,196.27,24.91474569]
[1731006738845,3.77943149,196.32,196.21,0.1]
[1731006739026,3.66787068,196.41,196.3,24.91474569]
[1731006739351,24.91474569,196.36,196.3,24.91474569]
[1731006739559,9.82659811,196.35,196.3,24.91474569]
[1731006739737,24.91474569,196.36,196.3,24.91474569]
[1731006739738,3.77946081,196.34,196.3,24.91474569]
[1731006740041,3.77946081,196.33,196.3,24.91474569]
[1731006740237,24.91474569,196.36,196.3,24.91474569]
[1731006740438,3.77425248,196.35,196.31,24.91474569]
[1731006740751,3.77425248,196.34,196.29,24.91474569]
[1731006741045,3.77426502,196.33,196.29,20.0]
[1731006741249,24.91474569,196.35,196.29,20.0]
[1731006741442,3.77382213,196.34,196.3,24.91474569]
[1731006741621,12.55739045,196.43,196.29,20.0]
[1731006741622,24.91474569,196.37,196.31,24.91474569]
[1731006741822,28.68660977,196.36,196.3,24.91474569]
[1731006742027,3.77186408,196.35,196.3,24.91474569]
[1731006742427,24.91474569,196.36,196.3,24.91474569]
[1731006743153,3.76979256,196.35,196.3,24.91474569]
[1731006743339,24.91474569,196.35,196.29,24.91474569]
[1731006743542,24.91474569,196.34,196.29,20.0]
[1731006743929,24.91474569,196.35,196.29,44.91474569]
[1731006744751,24.91474569,196.36,196.3,24.91474569]
[1731006745937,24.91474569,196.37,196.31,24.91474569]
[1731006746429,24.91474569,196.38,196.32,24.91474569]
[1731006746768,28.67775751,196.37,196.31,24.91474569]
[1731006746934,24.91474569,196.37,196.31,24.91474569]
[1731006747249,24.91474569,196.36,196.3,24.91474569]
[1731006747453,24.91474569,196.35,196.3,20.0]
[1731006747745,24.91474569,196.36,196.3,44.91474569]
[1731006747945,6.63038906,196.43,196.3,44.91474569]
[1731006748155,24.91474569,196.36,196.3,44.91474569]
[1731006750056,24.91474569,196.37,196.31,24.91474569]
[1731006750358,24.91474569,196.36,196.3,24.91474569]
[1731006750528,24.91474569,196.37,196.31,24.91474569]
[1731006750833,24.91474569,196.38,196.32,24.91474569]
[1731006751235,24.91474569,196.4,196.34,24.91474569]
[1731006751448,24.91474569,196.41,196.35,24.91474569]
[1731006751762,26.23612244,196.43,196.37,24.91474569]
[1731006752048,24.91474569,196.41,196.35,24.91474569]
[1731006752436,24.91474569,196.42,196.36,24.91474569]
[1731006752834,24.91474569,196.41,196.35,24.91474569]
[1731006753348,24.91474569,196.4,196.34,24.91474569]
[1731006754141,24.91474569,196.39,196.33,24.91474569]
[1731006754758,24.91474569,196.4,196.34,24.91474569]
[1731006755056,24.91474569,196.39,196.33,24.91474569]
[1731006755256,24.91474569,196.4,196.34,24.91474569]
[1731006755636,24.91474569,196.41,196.35,24.91474569]
[1731006755942,24.91474569,196.4,196.34,24.91474569]
[1731006756639,24.91474569,196.4,196.33,24.91474569]
[1731006756954,21.89517445,196.47,196.25,1.34123733]
[1731006756955,24.91474569,196.37,196.32,20.0]
[1731006757143,24.91474569,196.37,196.25,1.34123733]
[1731006757144,24.91474569,196.37,196.3,24.91474569]
[1731006757662,24.91474569,196.35,196.29,24.91474569]
[1731006759740,24.91474569,196.42,196.36,24.91474569]
[1731006760548,24.91474569,196.43,196.37,24.91474569]
[1731006761363,24.91474569,196.44,196.38,24.91474569]
[1731006761861,24.91474569,196.45,196.39,24.91474569]
[1731006762266,1.49215887,196.47,196.32,23.776884]
[1731006762267,24.91474569,196.42,196.36,20.0]
[1731006762445,24.91474569,196.43,196.37,24.91474569]
[1731006762646,24.91474569,196.42,196.36,24.91474569]
[1731006762848,24.91474569,196.4,196.34,24.91474569]
[1731006763749,24.91474569,196.39,196.33,24.91474569]
[1731006763944,24.91474569,196.39,196.25,0.1]
[1731006764248,1.59215887,196.47,196.25,0.1]
[1731006764249,24.91474569,196.42,196.36,24.91474569]
[1731006764570,24.91474569,196.43,196.37,24.91474569]
[1731006765077,24.91474569,196.44,196.38,24.91474569]
[1731006765942,24.91474569,196.45,196.39,24.91474569]
[1731006766247,24.91474569,196.45,196.31,43.876884]
[1731006766248,24.91474569,196.45,196.31,43.776884]
[1731006766544,24.91474569,196.42,196.36,24.91474569]
[1731006767169,24.91474569,196.43,196.37,24.91474569]
[1731006767350,24.91474569,196.42,196.36,24.91474569]
[1731006767944,24.91474569,196.43,196.37,24.91474569]
[1731006768252,24.91474569,196.44,196.38,24.91474569]
[1731006768752,0.12549,196.47,196.31,45.13771566]
[1731006768753,24.91474569,196.45,196.39,24.91474569]
[1731006769752,24.91474569,196.44,196.38,24.91474569]
[1731006769956,24.91474569,196.45,196.39,24.91474569]
[1731006770448,3.76577492,196.44,196.39,24.91474569]
[1731006770753,0.12549,196.47,196.4,24.91474569]
[1731006770754,3.76584646,196.43,196.4,24.91474569]
[1731006770950,24.91474569,196.46,196.4,24.91474569]
[1731006771462,3.76567893,196.45,196.43,24.91474569]
[1731006771775,0.12549,196.47,196.44,24.91474569]
[1731006771943,3.76933999,196.46,196.45,20.0]
[1731006772144,0.12549,196.47,196.45,44.91474569]
[1731006772340,0.12549,196.47,196.46,68.69162969]
[1731006775367,0.12549,196.47,196.46,44.91474569]
[1731006777244,0.12549,196.47,196.46,68.69162969]
[1731006780073,0.12549,196.47,196.46,24.91474569]
[1731006780256,0.12549,196.47,196.44,24.91474569]
[1731006780455,0.12549,196.47,196.43,24.91474569]
[1731006780751,0.12549,196.47,196.44,24.91474569]
[1731006781164,0.12549,196.47,196.46,24.91474569]
[1731006781562,0.12549,196.47,196.45,24.91474569]
[1731006781865,0.12549,196.47,196.46,24.91474569]
[1731006782474,25.04023569,196.47,196.4,24.91474569]
[1731006782650,24.91474569,196.45,196.39,24.91474569]
[1731006783155,24.91474569,196.45,196.3,25.01474569]
[1731006783156,24.91474569,196.43,196.37,24.91474569]
[1731006783464,24.91474569,196.43,196.36,24.91474569]
[1731006783656,24.91474569,196.43,196.37,24.91474569]
[1731006784963,24.91474569,196.42,196.36,24.91474569]
[1731006785264,24.91474569,196.4,196.34,24.91474569]
[1731006785663,24.91474569,196.41,196.34,24.91474569]
[1731006785861,24.91474569,196.4,196.34,24.91474569]
[1731006786174,24.91474569,196.39,196.33,24.91474569]
[1731006786478,24.91474569,196.4,196.33,24.91474569]
[1731006786681,24.91474569,196.41,196.35,24.91474569]
[1731006786973,23.776884,196.45,196.35,24.91474569]
[1731006786974,24.91474569,196.42,196.35,24.91474569]
[1731006788263,24.91474569,196.43,196.37,24.91474569]
[1731006789074,28.68765173,196.42,196.36,24.91474569]
[1731006789256,21.82911518,196.47,196.37,24.91474569]
[1731006789257,24.91474569,196.44,196.37,24.91474569]
[1731006789451,24.91474569,196.42,196.36,24.91474569]
[1731006789656,23.776884,196.46,196.37,24.91474569]
[1731006789657,24.91474569,196.43,196.37,24.91474569]
[1731006789850,24.91474569,196.43,196.31,20.0]
[1731006790063,23.776884,196.46,196.31,20.0]
[1731006790064,24.91474569,196.42,196.35,24.91474569]
[1731006790666,24.91474569,196.41,196.34,24.91474569]
[1731006790863,24.91474569,196.41,196.35,24.91474569]
[1731006791371,24.91474569,196.41,196.34,24.91474569]
[1731006791575,24.91474569,196.4,196.34,24.91474569]
[1731006791756,24.91474569,196.39,196.33,24.91474569]
[1731006791957,24.91474569,196.4,196.33,24.91474569]
[1731006792156,24.91474569,196.41,196.34,24.91474569]
[1731006792368,24.91474569,196.41,196.35,24.91474569]
[1731006793577,24.91474569,196.41,196.34,24.91474569]
[1731006793876,24.91474569,196.42,196.36,24.91474569]
[1731006794177,24.91474569,196.45,196.38,24.91474569]
[1731006794378,21.82869418,196.47,196.31,20.1]
[1731006794379,24.91474569,196.46,196.4,24.91474569]